fUST/lending_fUST_20260522
["ID","MTS","AMOUNT","RATE_DAILY","PERIOD"]
[422780589,1779382239000,-729.93,8.767e-05,2]
[422780593,1779382239000,-436.99186359,8.767e-05,2]
[422780597,1779382239000,-500.0,8.767e-05,2]
[422780595,1779382239000,-500.0,8.767e-05,2]
[422780599,1779382239000,-500.0,8.767e-05,2]
[422780476,1779382239000,-500.0,8.493e-05,2]
[422780572,1779382239000,-305.70635432,8.712e-05,2]
[422780545,1779382239000,-1846.35,8.493e-05,2]
[422780555,1779382239000,-1554.42,8.493e-05,2]
[422780547,1779382239000,-667.47,8.493e-05,2]
[422780488,1779382239000,-500.0,8.493e-05,2]
[422780549,1779382239000,-500.0,8.493e-05,2]
[422780490,1779382239000,-729.93,8.493e-05,2]
[422780497,1779382239000,-500.0,8.493e-05,2]
[422780493,1779382239000,-500.0,8.493e-05,2]
[422780492,1779382239000,-500.0,8.493e-05,2]
[422780495,1779382239000,-500.0,8.493e-05,2]
[422780501,1779382239000,-500.0,8.493e-05,2]
[422780503,1779382239000,-550.27,8.493e-05,2]
[422780499,1779382239000,-500.0,8.493e-05,2]
[422780507,1779382239000,-1799.37,8.493e-05,2]
[422780505,1779382239000,-500.0,8.493e-05,2]
[422780509,1779382239000,-1307.92,8.493e-05,2]
[422780511,1779382239000,-500.0,8.493e-05,2]
[422780519,1779382239000,-500.0,8.493e-05,2]
[422780478,1779382239000,-500.0,8.493e-05,2]
[422780515,1779382239000,-889.99,8.493e-05,2]
[422780513,1779382239000,-500.0,8.493e-05,2]
[422780544,1779382239000,-573.2,8.493e-05,2]
[422780532,1779382239000,-627.37,8.493e-05,2]
[422780540,1779382239000,-500.0,8.493e-05,2]
[422780538,1779382239000,-500.0,8.493e-05,2]
[422780528,1779382239000,-10195.21,8.493e-05,2]
[422780536,1779382239000,-2089.11,8.493e-05,2]
[422780542,1779382239000,-990.22,8.493e-05,2]
[422780527,1779382239000,-500.0,8.493e-05,2]
[422780525,1779382239000,-1121.95,8.493e-05,2]
[422780523,1779382239000,-500.0,8.493e-05,2]
[422780521,1779382239000,-500.0,8.493e-05,2]
[422780601,1779382239000,-500.0,8.767e-05,2]
[422780530,1779382239000,-602.46,8.493e-05,2]
[422780658,1779382240000,-573.2,8.767e-05,2]
[422780653,1779382240000,-500.0,8.767e-05,2]
[422780649,1779382240000,-627.37,8.767e-05,2]
[422780668,1779382240000,-757.83,8.767e-05,2]
[422780670,1779382240000,-1554.42,8.767e-05,2]
[422780666,1779382240000,-500.0,8.767e-05,2]
[422780660,1779382240000,-1846.35,8.767e-05,2]
[422780654,1779382240000,-500.0,8.767e-05,2]
[422780662,1779382240000,-667.47,8.767e-05,2]
[422780671,1779382240000,-567.0,8.767e-05,2]
[422780673,1779382240000,-1479.54,8.767e-05,2]
[422780656,1779382240000,-990.22,8.767e-05,2]
[422780647,1779382240000,-602.46,8.767e-05,2]
[422780613,1779382240000,-889.99,8.767e-05,2]
[422780624,1779382240000,-500.0,8.767e-05,2]
[422780626,1779382240000,-592.14349988,8.767e-05,2]
[422780622,1779382240000,-1121.95,8.767e-05,2]
[422780620,1779382240000,-500.0,8.767e-05,2]
[422780618,1779382240000,-500.0,8.767e-05,2]
[422780617,1779382240000,-500.0,8.767e-05,2]
[422780602,1779382240000,-550.27,8.767e-05,2]
[422780615,1779382240000,-233.17,8.767e-05,2]
[422780608,1779382240000,-1307.92,8.767e-05,2]
[422780604,1779382240000,-500.0,8.767e-05,2]
[422780611,1779382240000,-500.0,8.767e-05,2]
[422780606,1779382240000,-1799.37,8.767e-05,2]
[422780651,1779382240000,-2089.11,8.767e-05,2]
[422780646,1779382240000,-9603.06650012,8.767e-05,2]
[422780664,1779382240000,-500.0,8.767e-05,2]
[422780610,1779382240000,-500.0,8.767e-05,2]
[422780686,1779382240000,-161.7158655,8.812e-05,2]
[422780675,1779382240000,-589.04,8.767e-05,2]
[422780741,1779382240000,-1549.6017491,9.039e-05,2]
[422780738,1779382240000,-533.21178026,9.039e-05,2]
[422780726,1779382240000,-308.32767543,9.039e-05,2]
[422780723,1779382240000,-1308.97924586,9.039e-05,2]
[422780717,1779382240000,-5041.08396736,9.039e-05,2]
[422780722,1779382240000,-2075.00998034,9.039e-05,2]
[422780715,1779382240000,-152.0,9.001e-05,7]
[422780707,1779382240000,-168.4516,8.904e-05,2]
[422780719,1779382240000,-12033.40121222,9.039e-05,2]
[422780709,1779382240000,-35126.33914224,8.93e-05,2]
[422780703,1779382240000,-443.0,8.885e-05,2]
[422780705,1779382240000,-443.16539441,8.896e-05,2]
[422780713,1779382240000,-994.6183005,8.967e-05,2]
[422780745,1779382240000,-1806.30804927,9.039e-05,2]
[422780701,1779382240000,-185.0,8.885e-05,2]
[422780699,1779382240000,-372.0,8.885e-05,2]
[422780689,1779382240000,-160.0,8.812e-05,2]
[422780682,1779382240000,-500.0,8.767e-05,2]
[422780691,1779382240000,-824.983,8.814e-05,2]
[422780677,1779382240000,-500.0,8.767e-05,2]
[422780684,1779382240000,-314.30482458,8.786e-05,2]
[422780687,1779382240000,-160.0,8.812e-05,2]
[422780697,1779382240000,-2203.0,8.885e-05,2]
[422780693,1779382240000,-150.307,8.814e-05,2]
[422780680,1779382240000,-500.0,8.767e-05,2]
[422780695,1779382240000,-647.0,8.885e-05,2]
[422780711,1779382240000,-152.0,8.957e-05,2]
[422780679,1779382240000,-500.0,8.767e-05,2]
[422781119,1779382243000,-12915.8620387,9.039e-05,2]
[422781121,1779382243000,-55227.11701432,9.039e-05,2]
[422781136,1779382244000,-2512.25604105,9.039e-05,2]
[422781316,1779382246000,-1857.1789803,9.039e-05,2]
[422781314,1779382246000,-47032.40524377,9.039e-05,2]
[422781362,1779382247000,-355.3,9.039e-05,2]
[422781364,1779382247000,-453.78912081,9.039e-05,2]
[422781380,1779382247000,-2150.00499999,9.039e-05,2]
[422781371,1779382247000,-1447.51639662,9.039e-05,2]
[422781366,1779382247000,-53337.69676401,9.039e-05,2]
[422781849,1779383432000,-3038.50354988,6.902e-05,2]
[422781831,1779383432000,-2251.31959154,6.576e-05,2]
[422781834,1779383432000,-1645.36692601,6.576e-05,2]
[422781840,1779383432000,-485.78753156,6.643e-05,2]
[422781844,1779383432000,-300.0,6.801e-05,2]
[422781841,1779383432000,-1552.20923285,6.702e-05,2]
[422781845,1779383432000,-300.0,6.801e-05,2]
[422781851,1779383432000,-300.0,6.937e-05,2]
[422781842,1779383432000,-1200.0,6.715e-05,2]
[422781848,1779383432000,-2964.77713745,6.802e-05,2]
[422781839,1779383432000,-1103.31348245,6.576e-05,2]
[422781852,1779383432000,-300.0,6.937e-05,2]
[422781846,1779383432000,-300.0,6.801e-05,2]
[422781847,1779383432000,-300.0,6.801e-05,2]
[422781858,1779383432000,-300.0,6.937e-05,2]
[422781850,1779383432000,-300.0,6.937e-05,2]
[422781865,1779383432000,-300.0,6.937e-05,2]
[422781843,1779383432000,-1414.4873512,6.716e-05,2]
[422781864,1779383432000,-76.88324905,6.937e-05,2]
[422781863,1779383432000,-223.11675095,6.937e-05,2]
[422781862,1779383432000,-300.0,6.937e-05,2]
[422781859,1779383432000,-300.0,6.937e-05,2]
[422781866,1779383432000,-321.26759352,7.002e-05,2]
[422781857,1779383432000,-300.0,6.937e-05,2]
[422781855,1779383432000,-300.0,6.937e-05,2]
[422781861,1779383432000,-300.0,6.937e-05,2]
[422781860,1779383432000,-300.0,6.937e-05,2]
[422781856,1779383432000,-300.0,6.937e-05,2]
[422781854,1779383432000,-300.0,6.937e-05,2]
[422781853,1779383432000,-300.0,6.937e-05,2]
[422781892,1779383438000,-500.0,7.515e-05,2]
[422781878,1779383438000,-163.384262,7.352e-05,2]
[422781883,1779383438000,-175.59367856,7.515e-05,2]
[422781889,1779383438000,-500.0,7.515e-05,2]
[422781884,1779383438000,-500.0,7.515e-05,2]
[422781885,1779383438000,-500.0,7.515e-05,2]
[422781890,1779383438000,-500.0,7.515e-05,2]
[422781888,1779383438000,-500.0,7.515e-05,2]
[422781886,1779383438000,-500.0,7.515e-05,2]
[422781881,1779383438000,-500.0,7.515e-05,2]
[422781877,1779383438000,-3670.7652276,7.194e-05,2]
[422781887,1779383438000,-500.0,7.515e-05,2]
[422781879,1779383438000,-500.0,7.515e-05,2]
[422781880,1779383438000,-500.0,7.515e-05,2]
[422781876,1779383438000,-3435.43586418,7.102e-05,2]
[422781875,1779383438000,-600.0,7.075e-05,2]
[422781874,1779383438000,-2878.83890724,7.002e-05,2]
[422781873,1779383438000,-2238.56378436,6.932e-05,2]
[422781872,1779383438000,-2761.43621564,6.932e-05,2]
[422781902,1779383438000,-500.0,7.515e-05,2]
[422781882,1779383438000,-500.0,7.515e-05,2]
[422781903,1779383438000,-500.0,7.515e-05,2]
[422781912,1779383438000,-718.46044775,7.517e-05,2]
[422781893,1779383438000,-500.0,7.515e-05,2]
[422781891,1779383438000,-500.0,7.515e-05,2]
[422781917,1779383438000,-478.38726869,7.517e-05,2]
[422781918,1779383438000,-718.46044775,7.517e-05,2]
[422781913,1779383438000,-718.46044775,7.517e-05,2]
[422781905,1779383438000,-500.0,7.515e-05,2]
[422781916,1779383438000,-240.07317906,7.517e-05,2]
[422781915,1779383438000,-718.46044775,7.517e-05,2]
[422781914,1779383438000,-718.46044775,7.517e-05,2]
[422781910,1779383438000,-718.46044775,7.517e-05,2]
[422781908,1779383438000,-718.46044775,7.517e-05,2]
[422781911,1779383438000,-718.46044775,7.517e-05,2]
[422781906,1779383438000,-500.0,7.515e-05,2]
[422781909,1779383438000,-718.46044775,7.517e-05,2]
[422781894,1779383438000,-500.0,7.515e-05,2]
[422781900,1779383438000,-247.55697392,7.515e-05,2]
[422781895,1779383438000,-500.0,7.515e-05,2]
[422781899,1779383438000,-252.44302608,7.515e-05,2]
[422781897,1779383438000,-500.0,7.515e-05,2]
[422781898,1779383438000,-500.0,7.515e-05,2]
[422781904,1779383438000,-500.0,7.515e-05,2]
[422781907,1779383438000,-389.4293401,7.515e-05,2]
[422781896,1779383438000,-500.0,7.515e-05,2]
[422781940,1779383439000,-163.384262,7.661e-05,2]
[422781933,1779383439000,-720.10060561,7.517e-05,2]
[422781938,1779383439000,-141795.93199071,7.518e-05,2]
[422781941,1779383439000,-151.0,7.671e-05,2]
[422781942,1779383439000,-164.406922,7.671e-05,2]
[422781937,1779383439000,-3885.45215023,7.518e-05,2]
[422781944,1779383439000,-164.406922,7.671e-05,2]
[422781946,1779383439000,-720.0,7.782e-05,2]
[422781952,1779383439000,-500.0,8.219e-05,2]
[422781953,1779383439000,-588.21,8.219e-05,2]
[422781945,1779383439000,-164.406922,7.671e-05,2]
[422781950,1779383439000,-964.3191,8.219e-05,2]
[422781954,1779383439000,-500.0,8.219e-05,2]
[422781935,1779383439000,-720.10060561,7.517e-05,2]
[422781943,1779383439000,-164.406922,7.671e-05,2]
[422781936,1779383439000,-14690.25914684,7.518e-05,2]
[422781921,1779383439000,-718.46044775,7.517e-05,2]
[422781939,1779383439000,-3908.06518316,7.633e-05,2]
[422781947,1779383439000,-163.384262,7.971e-05,2]
[422781928,1779383439000,-729.51368542,7.517e-05,2]
[422781929,1779383439000,-729.51368542,7.517e-05,2]
[422781919,1779383439000,-718.46044775,7.517e-05,2]
[422781922,1779383439000,-718.46044775,7.517e-05,2]
[422781920,1779383439000,-718.46044775,7.517e-05,2]
[422781934,1779383439000,-720.10060561,7.517e-05,2]
[422781923,1779383439000,-718.46044775,7.517e-05,2]
[422781925,1779383439000,-729.51368542,7.517e-05,2]
[422781924,1779383439000,-729.51368542,7.517e-05,2]
[422781927,1779383439000,-729.51368542,7.517e-05,2]
[422781931,1779383439000,-729.51368542,7.517e-05,2]
[422781932,1779383439000,-729.51368542,7.517e-05,2]
[422781930,1779383439000,-729.51368542,7.517e-05,2]
[422781926,1779383439000,-729.51368542,7.517e-05,2]
[422781949,1779383439000,-4143.51800944,8.072e-05,2]
[422781987,1779383439000,-500.0,8.219e-05,2]
[422781951,1779383439000,-394.95,8.219e-05,2]
[422781967,1779383439000,-500.0,8.219e-05,2]
[422781968,1779383439000,-579.2,8.219e-05,2]
[422781970,1779383439000,-500.0,8.219e-05,2]
[422781971,1779383439000,-556.18,8.219e-05,2]
[422781981,1779383439000,-500.0,8.219e-05,2]
[422781979,1779383439000,-160.39,8.219e-05,2]
[422781966,1779383439000,-500.0,8.219e-05,2]
[422781982,1779383439000,-500.0,8.219e-05,2]
[422781986,1779383439000,-500.0,8.219e-05,2]
[422781980,1779383439000,-500.0,8.219e-05,2]
[422781983,1779383439000,-6516.79605995,8.219e-05,2]
[422781988,1779383439000,-85.47709282,8.219e-05,2]
[422781985,1779383439000,-1451.03669154,8.219e-05,2]
[422781948,1779383439000,-235.72861847,8e-05,2]
[422781984,1779383439000,-952.97724851,8.219e-05,2]
[422781978,1779383439000,-778.74,8.219e-05,2]
[422781969,1779383439000,-500.0,8.219e-05,2]
[422781977,1779383439000,-500.0,8.219e-05,2]
[422781955,1779383439000,-500.0,8.219e-05,2]
[422781956,1779383439000,-500.0,8.219e-05,2]
[422781963,1779383439000,-500.0,8.219e-05,2]
[422781957,1779383439000,-500.0,8.219e-05,2]
[422781975,1779383439000,-1144.43,8.219e-05,2]
[422781962,1779383439000,-645.68,8.219e-05,2]
[422781964,1779383439000,-500.0,8.219e-05,2]
[422781961,1779383439000,-599.52,8.219e-05,2]
[422781959,1779383439000,-500.0,8.219e-05,2]
[422781960,1779383439000,-500.0,8.219e-05,2]
[422781965,1779383439000,-500.0,8.219e-05,2]
[422781972,1779383439000,-500.0,8.219e-05,2]
[422781973,1779383439000,-500.0,8.219e-05,2]
[422781974,1779383439000,-1574.45,8.219e-05,2]
[422781976,1779383439000,-500.0,8.219e-05,2]
[422781958,1779383439000,-638.69,8.219e-05,2]
[422782034,1779383440000,-102.51936474,8.219e-05,2]
[422782029,1779383440000,-414.52290718,8.219e-05,2]
[422782031,1779383440000,-70.32422734,8.219e-05,2]
[422782030,1779383440000,-500.70931875,8.219e-05,2]
[422782032,1779383440000,-911.37577266,8.219e-05,2]
[422782033,1779383440000,-1725.45063526,8.219e-05,2]
[422782036,1779383440000,-500.0,8.219e-05,2]
[422782035,1779383440000,-500.0,8.219e-05,2]
[422782045,1779383440000,-500.0,8.219e-05,2]
[422782039,1779383440000,-128.76734791,8.219e-05,2]
[422782037,1779383440000,-155.91734791,8.219e-05,2]
[422782040,1779383440000,-420.18265209,8.219e-05,2]
[422782043,1779383440000,-501.55,8.219e-05,2]
[422782038,1779383440000,-371.23265209,8.219e-05,2]
[422782042,1779383440000,-1016.6806348,8.219e-05,2]
[422782044,1779383440000,-500.0,8.219e-05,2]
[422782046,1779383440000,-866.44,8.219e-05,2]
[422782041,1779383440000,-598.8693652,8.219e-05,2]
[422782047,1779383441000,-584.04,8.219e-05,2]
[422782048,1779383441000,-663.1,8.219e-05,2]
[422782049,1779383441000,-500.0,8.219e-05,2]
[422782050,1779383441000,-1294.6,8.219e-05,2]
[422782051,1779383441000,-500.0,8.219e-05,2]
[422782053,1779383441000,-467.19808674,8.219e-05,2]
[422782052,1779383441000,-515.41,8.219e-05,2]
[422782070,1779383443000,-813.5,8.219e-05,2]
[422782082,1779383444000,-376.100747,8.493e-05,2]
[422782084,1779383444000,-376.100747,8.493e-05,2]
[422782085,1779383444000,-376.100747,8.493e-05,2]
[422782081,1779383444000,-376.100747,8.493e-05,2]
[422782083,1779383444000,-376.100747,8.493e-05,2]
[422782078,1779383444000,-500.0,8.49e-05,2]
[422782076,1779383444000,-163.384262,8.28e-05,2]
[422782073,1779383444000,-500.0,8.219e-05,2]
[422782074,1779383444000,-500.0,8.219e-05,2]
[422782075,1779383444000,-500.0,8.219e-05,2]
[422782072,1779383444000,-500.0,8.219e-05,2]
[422782080,1779383444000,-376.100747,8.493e-05,2]
[422782079,1779383444000,-376.100747,8.493e-05,2]
[422782092,1779383444000,-199.55429179,8.493e-05,2]
[422782077,1779383444000,-235.72861843,8.302e-05,2]
[422782086,1779383444000,-376.100747,8.493e-05,2]
[422782071,1779383444000,-79.41191326,8.219e-05,2]
[422782093,1779383444000,-376.100747,8.493e-05,2]
[422782090,1779383444000,-376.100747,8.493e-05,2]
[422782099,1779383444000,-376.100747,8.493e-05,2]
[422782098,1779383444000,-376.100747,8.493e-05,2]
[422782097,1779383444000,-376.100747,8.493e-05,2]
[422782103,1779383444000,-43.22771388,8.493e-05,2]
[422782100,1779383444000,-376.100747,8.493e-05,2]
[422782105,1779383444000,-49.61353912,8.493e-05,2]
[422782104,1779383444000,-376.100747,8.493e-05,2]
[422782102,1779383444000,-285.0,8.493e-05,2]
[422782096,1779383444000,-376.100747,8.493e-05,2]
[422782095,1779383444000,-376.100747,8.493e-05,2]
[422782094,1779383444000,-376.100747,8.493e-05,2]
[422782091,1779383444000,-176.54645521,8.493e-05,2]
[422782089,1779383444000,-376.100747,8.493e-05,2]
[422782088,1779383444000,-250.93151832,8.493e-05,2]
[422782087,1779383444000,-125.16922868,8.493e-05,2]
[422782101,1779383444000,-47.87303312,8.493e-05,2]
[422782146,1779383446000,-376.100747,8.493e-05,2]
[422782152,1779383446000,-376.100747,8.493e-05,2]
[422782140,1779383446000,-500.0,8.219e-05,2]
[422782154,1779383446000,-376.100747,8.493e-05,2]
[422782142,1779383446000,-326.48720788,8.493e-05,2]
[422782144,1779383446000,-376.100747,8.493e-05,2]
[422782148,1779383446000,-376.100747,8.493e-05,2]
[422782156,1779383446000,-376.100747,8.493e-05,2]
[422782150,1779383446000,-376.100747,8.493e-05,2]
[422782158,1779383446000,-376.100747,8.493e-05,2]
[422782159,1779383446000,-376.100747,8.493e-05,2]
[422782169,1779383446000,-376.100747,8.493e-05,2]
[422782171,1779383446000,-376.100747,8.493e-05,2]
[422782172,1779383446000,-376.100747,8.493e-05,2]
[422782165,1779383446000,-376.100747,8.493e-05,2]
[422782163,1779383446000,-376.100747,8.493e-05,2]
[422782161,1779383446000,-376.100747,8.493e-05,2]
[422782167,1779383446000,-376.100747,8.493e-05,2]
[422782265,1779383447000,-376.100747,8.493e-05,2]
[422782263,1779383447000,-383.475271,8.493e-05,2]
[422782259,1779383447000,-383.475271,8.493e-05,2]
[422782261,1779383447000,-376.100747,8.493e-05,2]
[422782257,1779383447000,-376.100747,8.493e-05,2]
[422782246,1779383447000,-376.100747,8.493e-05,2]
[422782250,1779383447000,-376.100747,8.493e-05,2]
[422782267,1779383447000,-383.475271,8.493e-05,2]
[422782255,1779383447000,-383.475271,8.493e-05,2]
[422782252,1779383447000,-383.475271,8.493e-05,2]
[422782248,1779383447000,-383.475271,8.493e-05,2]
[422782253,1779383447000,-376.100747,8.493e-05,2]
[422782244,1779383447000,-383.475271,8.493e-05,2]
[422782242,1779383447000,-376.100747,8.493e-05,2]
[422782281,1779383447000,-376.100747,8.493e-05,2]
[422782271,1779383447000,-383.475271,8.493e-05,2]
[422782277,1779383447000,-376.100747,8.493e-05,2]
[422782284,1779383447000,-376.100747,8.493e-05,2]
[422782279,1779383447000,-383.475271,8.493e-05,2]
[422782286,1779383447000,-383.475271,8.493e-05,2]
[422782282,1779383447000,-383.475271,8.493e-05,2]
[422782273,1779383447000,-376.100747,8.493e-05,2]
[422782275,1779383447000,-383.475271,8.493e-05,2]
[422782290,1779383447000,-228.610272,8.493e-05,2]
[422782288,1779383447000,-376.100747,8.493e-05,2]
[422782292,1779383447000,-964.3191,8.493e-05,2]
[422782293,1779383447000,-461.7,8.493e-05,2]
[422782297,1779383447000,-151.0,8.493e-05,2]
[422782241,1779383447000,-383.475271,8.493e-05,2]
[422782269,1779383447000,-376.100747,8.493e-05,2]
[422782239,1779383447000,-376.100747,8.493e-05,2]
[422782209,1779383447000,-376.100747,8.493e-05,2]
[422782233,1779383447000,-383.475271,8.493e-05,2]
[422782176,1779383447000,-376.100747,8.493e-05,2]
[422782175,1779383447000,-376.100747,8.493e-05,2]
[422782178,1779383447000,-376.100747,8.493e-05,2]
[422782180,1779383447000,-376.100747,8.493e-05,2]
[422782186,1779383447000,-376.100747,8.493e-05,2]
[422782190,1779383447000,-376.100747,8.493e-05,2]
[422782184,1779383447000,-376.100747,8.493e-05,2]
[422782182,1779383447000,-376.100747,8.493e-05,2]
[422782188,1779383447000,-376.100747,8.493e-05,2]
[422782192,1779383447000,-376.100747,8.493e-05,2]
[422782205,1779383447000,-376.100747,8.493e-05,2]
[422782201,1779383447000,-376.100747,8.493e-05,2]
[422782199,1779383447000,-376.100747,8.493e-05,2]
[422782195,1779383447000,-376.100747,8.493e-05,2]
[422782237,1779383447000,-383.475271,8.493e-05,2]
[422782207,1779383447000,-376.100747,8.493e-05,2]
[422782194,1779383447000,-376.100747,8.493e-05,2]
[422782197,1779383447000,-376.100747,8.493e-05,2]
[422782213,1779383447000,-376.100747,8.493e-05,2]
[422782219,1779383447000,-383.475271,8.493e-05,2]
[422782217,1779383447000,-376.100747,8.493e-05,2]
[422782221,1779383447000,-376.100747,8.493e-05,2]
[422782222,1779383447000,-383.475271,8.493e-05,2]
[422782224,1779383447000,-376.100747,8.493e-05,2]
[422782230,1779383447000,-383.475271,8.493e-05,2]
[422782295,1779383447000,-254.87041736,8.493e-05,2]
[422782226,1779383447000,-383.475271,8.493e-05,2]
[422782214,1779383447000,-383.475271,8.493e-05,2]
[422782231,1779383447000,-376.100747,8.493e-05,2]
[422782235,1779383447000,-376.100747,8.493e-05,2]
[422782211,1779383447000,-376.100747,8.493e-05,2]
[422782299,1779383447000,-151.0,8.493e-05,2]
[422782228,1779383447000,-376.100747,8.493e-05,2]
[422782303,1779383447000,-151.0,8.493e-05,2]
[422782377,1779383447000,-0.67792954,8.493e-05,2]
[422782375,1779383447000,-548.27207046,8.493e-05,2]
[422782364,1779383447000,-8920.81,8.493e-05,2]
[422782379,1779383447000,-151.0,8.493e-05,2]
[422782366,1779383447000,-981.7,8.493e-05,2]
[422782381,1779383447000,-151.0,8.493e-05,2]
[422782369,1779383447000,-500.0,8.493e-05,2]
[422782368,1779383447000,-1827.97,8.493e-05,2]
[422782371,1779383447000,-500.0,8.493e-05,2]
[422782373,1779383447000,-527.15,8.493e-05,2]
[422782383,1779383447000,-1615.55,8.493e-05,2]
[422782385,1779383447000,-501.55,8.493e-05,2]
[422782386,1779383447000,-500.0,8.493e-05,2]
[422782394,1779383447000,-164.406922,8.493e-05,2]
[422782351,1779383447000,-500.0,8.493e-05,2]
[422782398,1779383447000,-164.406922,8.493e-05,2]
[422782400,1779383447000,-164.406922,8.493e-05,2]
[422782402,1779383447000,-164.406922,8.493e-05,2]
[422782392,1779383447000,-584.04,8.493e-05,2]
[422782408,1779383447000,-164.406922,8.493e-05,2]
[422782409,1779383447000,-164.406922,8.493e-05,2]
[422782413,1779383447000,-1294.6,8.493e-05,2]
[422782411,1779383447000,-500.0,8.493e-05,2]
[422782390,1779383447000,-866.44,8.493e-05,2]
[422782404,1779383447000,-663.1,8.493e-05,2]
[422782406,1779383447000,-164.406922,8.493e-05,2]
[422782418,1779383447000,-1360.11,8.493e-05,2]
[422782417,1779383447000,-515.41,8.493e-05,2]
[422782415,1779383447000,-500.0,8.493e-05,2]
[422782305,1779383447000,-638.69,8.493e-05,2]
[422782396,1779383447000,-164.406922,8.493e-05,2]
[422782350,1779383447000,-1144.43,8.493e-05,2]
[422782388,1779383447000,-500.0,8.493e-05,2]
[422782355,1779383447000,-778.74,8.493e-05,2]
[422782356,1779383447000,-500.0,8.493e-05,2]
[422782307,1779383447000,-290.56,8.493e-05,2]
[422782313,1779383447000,-500.0,8.493e-05,2]
[422782311,1779383447000,-233.68,8.493e-05,2]
[422782309,1779383447000,-500.0,8.493e-05,2]
[422782315,1779383447000,-614.264198,8.493e-05,2]
[422782319,1779383447000,-614.264198,8.493e-05,2]
[422782317,1779383447000,-614.264198,8.493e-05,2]
[422782321,1779383447000,-614.264198,8.493e-05,2]
[422782323,1779383447000,-664.341089,8.493e-05,2]
[422782324,1779383447000,-664.341089,8.493e-05,2]
[422782326,1779383447000,-664.341089,8.493e-05,2]
[422782335,1779383447000,-500.0,8.493e-05,2]
[422782337,1779383447000,-151.0,8.493e-05,2]
[422782328,1779383447000,-664.341089,8.493e-05,2]
[422782301,1779383447000,-500.0,8.493e-05,2]
[422782332,1779383447000,-500.0,8.493e-05,2]
[422782334,1779383447000,-500.0,8.493e-05,2]
[422782358,1779383447000,-500.0,8.493e-05,2]
[422782353,1779383447000,-500.0,8.493e-05,2]
[422782362,1779383447000,-500.0,8.493e-05,2]
[422782348,1779383447000,-500.0,8.493e-05,2]
[422782347,1779383447000,-556.18,8.493e-05,2]
[422782346,1779383447000,-151.0,8.493e-05,2]
[422782349,1779383447000,-1574.45,8.493e-05,2]
[422782345,1779383447000,-151.0,8.493e-05,2]
[422782343,1779383447000,-500.0,8.493e-05,2]
[422782344,1779383447000,-151.0,8.493e-05,2]
[422782341,1779383447000,-151.0,8.493e-05,2]
[422782330,1779383447000,-151.0,8.493e-05,2]
[422782339,1779383447000,-151.0,8.493e-05,2]
[422782489,1779383448000,-500.0,8.767e-05,2]
[422782500,1779383448000,-500.0,8.767e-05,2]
[422782498,1779383448000,-778.74,8.767e-05,2]
[422782495,1779383448000,-500.0,8.767e-05,2]
[422782483,1779383448000,-500.0,8.767e-05,2]
[422782474,1779383448000,-638.69,8.767e-05,2]
[422782482,1779383448000,-500.0,8.767e-05,2]
[422782476,1779383448000,-304.86,8.767e-05,2]
[422782470,1779383448000,-5.13174558,8.767e-05,2]
[422782485,1779383448000,-500.0,8.767e-05,2]
[422782493,1779383448000,-1144.43,8.767e-05,2]
[422782503,1779383448000,-500.0,8.767e-05,2]
[422782487,1779383448000,-556.18,8.767e-05,2]
[422782497,1779383448000,-500.0,8.767e-05,2]
[422782508,1779383448000,-981.7,8.767e-05,2]
[422782506,1779383448000,-8920.81,8.767e-05,2]
[422782504,1779383448000,-500.0,8.767e-05,2]
[422782510,1779383448000,-1827.97,8.767e-05,2]
[422782521,1779383448000,-1615.55,8.767e-05,2]
[422782525,1779383448000,-500.0,8.767e-05,2]
[422782523,1779383448000,-501.55,8.767e-05,2]
[422782472,1779383448000,-494.86825442,8.767e-05,2]
[422782526,1779383448000,-500.0,8.767e-05,2]
[422782491,1779383448000,-1574.45,8.767e-05,2]
[422782480,1779383448000,-500.0,8.767e-05,2]
[422782425,1779383448000,-270.673062,8.493e-05,2]
[422782464,1779383448000,-664.12844528,8.767e-05,2]
[422782514,1779383448000,-500.0,8.767e-05,2]
[422782428,1779383448000,-270.673062,8.493e-05,2]
[422782426,1779383448000,-270.673062,8.493e-05,2]
[422782430,1779383448000,-500.0,8.493e-05,2]
[422782433,1779383448000,-500.0,8.493e-05,2]